lending/lending_fUSD_20250315
["ID","MTS","AMOUNT","RATE_DAILY","PERIOD"]
[356187669,1742053852069,-500.0,0.00043835,120]
[356187670,1742053852079,-500.0,0.00043835,120]
[356187671,1742053852089,-500.0,0.00043835,120]
[356187672,1742053852101,-500.0,0.00043835,120]
[356187673,1742053852111,-500.0,0.00043835,120]
[356187674,1742053852121,-507.79434361,0.00043835,120]
[356187675,1742053852132,-500.0,0.00043835,120]
[356187676,1742053852142,-501.11050623,0.00043835,120]
[356187677,1742053852152,-500.0,0.00043835,120]
[356187678,1742053852162,-500.0,0.00043835,120]
[356187679,1742053852171,-500.0,0.00043835,120]
[356187680,1742053852180,-500.0,0.00043835,120]
[356187681,1742053852190,-500.0,0.00043835,120]
[356187682,1742053852200,-500.0,0.00043835,120]
[356187683,1742053852210,-500.0,0.00043835,120]
[356187684,1742053852219,-510.22071179,0.00043835,120]
[356187685,1742053852229,-500.0,0.00043835,120]
[356187686,1742053852239,-500.0,0.00043835,120]
[356187687,1742053852248,-500.0,0.00043835,120]
[356187688,1742053852267,-677.93,0.00043835,120]
[356187689,1742053852277,-500.0,0.00043835,120]
[356187690,1742053852286,-520.44390807,0.00043835,120]
[356187691,1742053852295,-500.0,0.00043835,120]
[356187692,1742053852306,-500.0,0.00043835,120]
[356187693,1742053852317,-500.0,0.00043835,120]
[356187694,1742053852325,-500.0,0.00043835,120]
[356187695,1742053852335,-500.0,0.00043835,120]
[356187696,1742053852344,-500.0,0.00043835,120]
[356187697,1742053852354,-500.0,0.00043835,120]
[356187698,1742053852364,-500.0,0.00043835,120]
[356187699,1742053852373,-500.0,0.00043835,120]
[356187700,1742053852383,-500.0,0.00043835,120]
[356187701,1742053852392,-682.77,0.00043835,120]
[356187702,1742053852402,-500.0,0.00043835,120]
[356187703,1742053852412,-500.0,0.00043835,120]
[356187704,1742053852421,-500.0,0.00043835,120]
[356187705,1742053852431,-500.0,0.00043835,120]
[356187706,1742053852442,-500.0,0.00043835,120]
[356187707,1742053852451,-500.0,0.00043835,120]
[356187708,1742053852461,-500.0,0.00043835,120]
[356187709,1742053852471,-500.0,0.00043835,120]
[356187710,1742053852481,-500.0,0.00043835,120]
[356187711,1742053852490,-500.0,0.00043835,120]
[356187712,1742053852500,-500.0,0.00043835,120]
[356187713,1742053852510,-507.01382733,0.00043835,120]
[356187714,1742053852519,-1796.68,0.00043835,120]
[356187715,1742053852530,-500.0,0.00043835,120]
[356187716,1742053852539,-500.0,0.00043835,120]
[356187717,1742053852549,-500.0,0.00043835,120]
[356187718,1742053852560,-500.0,0.00043835,120]
[356187719,1742053852570,-519.56028623,0.00043835,120]
[356187720,1742053852580,-500.0,0.00043835,120]
[356187721,1742053852590,-500.0,0.00043835,120]
[356187722,1742053852602,-500.0,0.00043835,120]
[356187723,1742053852612,-693.76,0.00043835,120]
[356187724,1742053852621,-507.44476743,0.00043835,120]
[356187725,1742053852631,-500.0,0.00043835,120]
[356187726,1742053852641,-500.0,0.00043835,120]
[356187727,1742053852651,-500.0,0.00043835,120]
[356187728,1742053852661,-578.44,0.00043835,120]
[356187729,1742053852671,-501.5612218,0.00043835,120]
[356187730,1742053852682,-802.0,0.00043835,120]
[356187731,1742053852692,-500.0,0.00043835,120]
[356187732,1742053852702,-500.0,0.00043835,120]
[356187733,1742053852944,-500.0,0.00043835,120]
[356187734,1742053852955,-500.0,0.00043835,120]
[356187735,1742053852965,-500.0,0.00043835,120]
[356187736,1742053852976,-500.0,0.00043835,120]
[356187737,1742053852986,-500.0,0.00043835,120]
[356187738,1742053852996,-500.0,0.00043835,120]
[356187739,1742053853006,-522.58718832,0.00043835,120]
[356187740,1742053853016,-596.92,0.00043835,120]
[356187741,1742053853026,-500.0,0.00043835,120]
[356187742,1742053853036,-500.0,0.00043835,120]
[356187743,1742053853046,-500.0,0.00043835,120]
[356187744,1742053853056,-500.0,0.00043835,120]
[356187745,1742053853066,-500.0,0.00043835,120]
[356187746,1742053853076,-500.0,0.00043835,120]
[356187747,1742053853086,-500.0,0.00043835,120]
[356187748,1742053853095,-500.0,0.00043835,120]
[356187749,1742053853104,-500.0,0.00043835,120]
[356187750,1742053853114,-489.29725068,0.00043835,120]
[356187751,1742053853124,-500.0,0.00043835,120]
[356187752,1742053853134,-500.0,0.00043835,120]
[356187753,1742053853144,-926.94,0.00043835,120]
[356187754,1742053853154,-500.0,0.00043835,120]
[356187755,1742053853164,-504.03761588,0.00043835,120]
[356187756,1742053853174,-500.0,0.00043835,120]
[356187757,1742053853185,-1230.06,0.00043835,120]
[356187758,1742053853195,-500.0,0.00043835,120]
[356187759,1742053853204,-500.0,0.00043835,120]
[356187760,1742053853214,-500.0,0.00043835,120]
[356187761,1742053853224,-506.28990434,0.00043835,120]
[356187762,1742053853234,-500.0,0.00043835,120]
[356187763,1742053853243,-500.0,0.00043835,120]
[356187764,1742053853253,-500.0,0.00043835,30]
[356187765,1742053853263,-500.0,0.00043835,120]
[356187766,1742053853273,-502.91496636,0.00043835,120]
[356187767,1742053853283,-500.0,0.00043835,120]
[356187768,1742053853293,-500.0,0.00043835,120]
[356187769,1742053853303,-500.0,0.00043835,120]
[356187770,1742053853316,-500.86541279,0.00043835,120]
[356187771,1742053853326,-500.0,0.00043835,120]
[356187772,1742053853335,-534.58,0.00043835,120]
[356187773,1742053853345,-500.0,0.00043835,120]
[356187774,1742053853354,-500.0,0.00043835,120]
[356187775,1742053853364,-500.0,0.00043835,120]
[356187776,1742053853374,-500.0,0.00043835,120]
[356187777,1742053853383,-500.0,0.00043835,120]
[356187778,1742053853393,-500.0,0.00043835,120]
[356187779,1742053853403,-500.0,0.00043835,120]
[356187780,1742053853413,-500.0,0.00043835,120]
[356187781,1742053853423,-500.0,0.00043835,120]
[356187782,1742053853432,-500.0,0.00043835,120]
[356187783,1742053853442,-921.45,0.00043835,120]
[356187784,1742053853451,-500.0,0.00043835,120]
[356187785,1742053853461,-500.0,0.00043835,120]
[356187786,1742053853471,-500.0,0.00043835,120]
[356187787,1742053853481,-500.0,0.00043835,120]
[356187788,1742053853491,-500.33592863,0.00043835,120]
[356187789,1742053853500,-500.0,0.00043835,120]
[356187790,1742053853510,-500.0,0.00043835,120]
[356187791,1742053853519,-500.0,0.00043835,120]
[356187792,1742053853529,-500.0,0.00043835,120]
[356187793,1742053853539,-500.0,0.00043835,120]
[356187794,1742053853549,-1727.43,0.00043835,120]
[356187795,1742053853558,-152.84895465,0.00043835,120]
[356187796,1742053853568,-502.18673229,0.00043835,120]
[356187797,1742053853577,-500.0,0.00043835,120]
[356187798,1742053853587,-547.13420582,0.00043835,120]
[356187799,1742053853601,-500.0,0.00043835,120]
[356187800,1742053853611,-500.0,0.00043835,120]
[356187801,1742053853623,-500.0,0.00043835,120]
[356187802,1742053853633,-500.0,0.00043835,120]
[356187803,1742053853643,-435.48602783,0.00043835,120]
[356187804,1742053853654,-500.0,0.00043835,120]
[356187805,1742053853665,-500.0,0.00043835,120]
[356187806,1742053853676,-501.36464069,0.00043835,120]
[356187807,1742053853686,-500.0,0.00043835,120]
[356187808,1742053853696,-599.91,0.00043835,120]
[356187809,1742053853706,-505.62472407,0.00043835,120]
[356187810,1742053853716,-500.0,0.00043835,120]
[356187811,1742053853725,-500.8529208,0.00043835,120]
[356187812,1742053853736,-550.96295285,0.00043835,120]
[356187813,1742053853746,-871.26,0.00043835,120]
[356187814,1742053853755,-500.71198509,0.00043835,120]
[356187815,1742053853765,-501.6059967,0.00043835,120]
[356187816,1742053853774,-506.20061809,0.00043835,120]
[356187817,1742053853784,-500.0,0.00043835,120]
[356187818,1742053853794,-500.0,0.00043835,120]
[356187819,1742053853804,-500.0,0.00043835,120]
[356187820,1742053853814,-500.0,0.00043835,120]
[356187821,1742053853824,-500.0,0.00043835,120]
[356187822,1742053853834,-500.0,0.00043835,120]
[356187823,1742053853844,-568.70350509,0.00043835,120]
[356187824,1742053853854,-500.0,0.00043835,120]
[356187825,1742053853864,-1169.75,0.00043835,120]
[356187826,1742053853874,-501.05102674,0.00043835,120]
[356187827,1742053853884,-500.0,0.00043835,120]
[356187828,1742053853894,-502.04131173,0.00043835,120]
[356187829,1742053853903,-502.08664332,0.00043835,120]
[356187830,1742053853913,-2429.22,0.00043835,120]
[356187831,1742053853923,-500.0,0.00043835,120]
[356187832,1742053853933,-500.0,0.00043835,120]
[356187833,1742053853942,-501.68450128,0.00043835,120]
[356187834,1742053853951,-500.0,0.00043835,120]
[356187835,1742053853961,-500.0,0.00043835,120]
[356187836,1742053853972,-500.0,0.00043835,120]
[356187837,1742053853982,-500.0,0.00043835,120]
[356187838,1742053853992,-500.0,0.00043835,120]
[356187839,1742053854002,-501.531774,0.00043835,120]
[356187840,1742053854012,-500.0,0.00043835,120]
[356187841,1742053854022,-500.0,0.00043835,120]
[356187842,1742053854033,-500.0,0.00043835,120]
[356187843,1742053854043,-500.0,0.00043835,120]
[356187844,1742053854053,-500.0,0.00043835,120]
[356187845,1742053854063,-500.0,0.00043835,120]
[356187846,1742053854073,-987.03,0.00043835,120]
[356187847,1742053854083,-503.39442257,0.00043835,120]
[356187848,1742053854093,-500.0,0.00043835,120]
[356187849,1742053854102,-500.0,0.00043835,120]
[356187850,1742053854112,-500.0,0.00043835,120]
[356187851,1742053854122,-526.52460524,0.00043835,120]
[356187852,1742053854132,-500.0,0.00043835,120]
[356187853,1742053854141,-500.0,0.00043835,120]
[356187854,1742053854151,-500.0,0.00043835,120]
[356187855,1742053854161,-500.0,0.00043835,120]
[356187856,1742053854170,-379.91612133,0.00043835,120]
[356187857,1742053854180,-500.0,0.00043835,120]
[356187858,1742053854190,-500.0,0.00043835,120]
[356187859,1742053854199,-500.0,0.00043835,120]
[356187860,1742053854209,-500.0,0.00043835,120]
[356187861,1742053854219,-500.0,0.00043835,120]
[356187862,1742053854228,-501.93661268,0.00043835,120]
[356187863,1742053854239,-500.0,0.00043835,120]
[356187864,1742053854248,-500.0,0.00043835,120]
[356187865,1742053854257,-500.0,0.00043835,120]
[356187866,1742053854267,-1720.16,0.00043835,120]
[356187867,1742053854277,-1938.15,0.00043835,120]
[356187868,1742053854288,-500.0,0.00043835,120]
[356187869,1742053854297,-505.11401263,0.00043835,120]
[356187870,1742053854308,-500.0,0.00043835,120]
[356187871,1742053854318,-1928.15,0.00043835,120]
[356187872,1742053854328,-993.96,0.00043835,120]
[356187873,1742053854338,-500.0,0.00043835,120]
[356187874,1742053854347,-992.83,0.00043835,120]
[356187875,1742053854357,-501.96273751,0.00043835,120]
[356187876,1742053854367,-500.0,0.00043835,120]
[356187877,1742053854377,-500.0,0.00043835,120]
[356187878,1742053854386,-555.32,0.00043835,120]
[356187879,1742053854396,-500.0,0.00043835,120]
[356187880,1742053854406,-500.0,0.00043835,120]
[356187881,1742053854416,-500.0,0.00043835,120]
[356187882,1742053854426,-500.0,0.00043835,120]
[356187883,1742053854436,-715.78,0.00043835,120]
[356187884,1742053854445,-637.28,0.00043835,120]
[356187885,1742053854455,-500.0,0.00043835,120]
[356187886,1742053854466,-2182.86,0.00043835,120]
[356187887,1742053854475,-500.0,0.00043835,120]
[356187888,1742053854485,-500.0,0.00043835,120]
[356187889,1742053854495,-500.0,0.00043835,120]
[356187890,1742053854504,-508.96561589,0.00043835,120]
[356187891,1742053854514,-532.44,0.00043835,120]
[356187892,1742053854523,-500.0,0.00043835,120]
[356187893,1742053854533,-500.0,0.00043835,120]
[356187894,1742053854543,-500.0,0.00043835,120]
[356187895,1742053854552,-500.0,0.00043835,120]
[356187896,1742053854562,-500.0,0.00043835,120]
[356187897,1742053854572,-505.17216668,0.00043835,120]
[356187898,1742053854582,-501.34283777,0.00043835,120]
[356187899,1742053854595,-500.0,0.00043835,120]
[356187900,1742053854610,-500.0,0.00043835,120]
[356187901,1742053854619,-501.06472898,0.00043835,120]
[356187902,1742053854628,-500.0,0.00043835,120]
[356187903,1742053854638,-500.0,0.00043835,120]
[356187904,1742053854648,-912.39,0.00043835,120]
[356187905,1742053854658,-500.0,0.00043835,120]
[356187906,1742053854668,-569.88,0.00043835,120]
[356187907,1742053854678,-500.0,0.00043835,120]
[356187908,1742053854688,-507.91569366,0.00043835,120]
[356187909,1742053854698,-500.0,0.00043835,120]
[356187910,1742053854708,-859.69,0.00043835,120]
[356187911,1742053854717,-500.0,0.00043835,120]
[356187912,1742053854726,-528.55962267,0.00043835,120]
[356187913,1742053854736,-500.0,0.00043835,120]
[356187914,1742053854746,-556.06,0.00043835,120]
[356187915,1742053854756,-500.0,0.00043835,120]
[356187916,1742053854765,-500.0,0.00043835,120]
[356187917,1742053854776,-500.0,0.00043835,120]
[356187918,1742053854785,-948.57,0.00043835,120]
[356187919,1742053854795,-500.93838282,0.00043835,120]
[356187920,1742053854805,-500.0,0.00043835,120]
[356187921,1742053854814,-500.0,0.00043835,2]
[356187922,1742053854823,-1103.3,0.00043835,120]
[356187923,1742053854833,-500.0,0.00043835,120]
[356187924,1742053854843,-656.59,0.00043835,120]
[356187925,1742053854852,-500.0,0.00043835,120]
[356187926,1742053854862,-500.0,0.00043835,120]
[356187927,1742053854871,-500.0,0.00043835,120]
[356187928,1742053854888,-500.0,0.00043835,120]
[356187929,1742053854905,-500.0,0.00043835,30]
[356187930,1742053854917,-511.74444315,0.00043835,120]
[356187931,1742053854932,-500.0,0.00043835,120]
[356187932,1742053854946,-500.0,0.00043835,120]
[356187933,1742053854962,-500.0,0.00043835,120]
[356187934,1742053854976,-500.0,0.00043835,120]
[356187935,1742053854990,-500.0,0.00043835,120]
[356187936,1742053855003,-500.0,0.00043835,120]
[356187937,1742053855017,-500.0,0.00043835,120]
[356187938,1742053855032,-504.76323139,0.00043835,120]
[356187939,1742053855046,-500.0,0.00043835,120]
[356187940,1742053855061,-500.0,0.00043835,120]
[356187941,1742053855076,-505.19428889,0.00043835,120]
[356187942,1742053855091,-500.0,0.00043835,120]
[356187943,1742053855105,-500.0,0.00043835,120]
[356187944,1742053855121,-3195.09,0.00043835,120]
[356187945,1742053855135,-3195.09,0.00043835,120]
[356187946,1742053855150,-3195.09,0.00043835,120]
[356187947,1742053855165,-504.07564323,0.00043835,120]
[356187948,1742053855181,-3195.09,0.00043835,120]
[356187949,1742053855194,-3195.09,0.00043835,120]
[356187950,1742053855209,-500.0,0.00043835,120]
[356187951,1742053855221,-500.0,0.00043835,120]
[356187952,1742053855234,-3195.09,0.00043835,120]
[356187953,1742053855249,-3195.09,0.00043835,120]
[356187954,1742053855264,-3195.09,0.00043835,120]
[356187955,1742053855275,-500.0,0.00043835,120]
[356187956,1742053855287,-3195.09,0.00043835,120]
[356187957,1742053855301,-3195.09,0.00043835,120]
[356187958,1742053855315,-3195.09,0.00043835,120]
[356187959,1742053855327,-3195.09,0.00043835,120]
[356187960,1742053855339,-500.0,0.00043835,120]
[356187961,1742053855351,-500.0,0.00043835,120]
[356187962,1742053855363,-500.0,0.00043835,30]
[356187963,1742053855376,-500.0,0.00043835,120]
[356187964,1742053855390,-500.0,0.00043835,120]
[356187965,1742053855403,-532.03,0.00043835,120]
[356187966,1742053855416,-500.0,0.00043835,120]
[356187967,1742053855428,-500.0,0.00043835,120]
[356187968,1742053855440,-1098.21,0.00043835,120]
[356187969,1742053855453,-500.0,0.00043835,120]
[356187970,1742053855465,-500.0,0.00043835,120]
[356187971,1742053855478,-500.0,0.00043835,120]
[356187972,1742053855491,-496.38358558,0.00043835,120]
[356187973,1742053855504,-500.0,0.00043835,120]
[356187974,1742053855516,-506.71653431,0.00043835,120]
[356187975,1742053855531,-515.66,0.00043835,120]
[356187976,1742053855543,-1036.04,0.00043835,120]
[356187977,1742053855556,-501.10236157,0.00043835,120]
[356187978,1742053855568,-500.0,0.00043835,120]
[356187979,1742053855582,-726.2,0.00043835,120]
[356187980,1742053855594,-500.0,0.00043835,120]
[356187981,1742053855611,-572.55,0.00043835,120]
[356187982,1742053855624,-500.0,0.00043835,120]
[356187983,1742053855637,-500.0,0.00043835,120]
[356187984,1742053855651,-302.77940156,0.00043835,120]
[356187985,1742053855663,-500.0,0.00043835,120]
[356187986,1742053855676,-1409.92622598,0.00043835,120]
[356187987,1742053855689,-500.0,0.00043835,120]
[356187988,1742053855701,-500.0,0.00043835,120]
[356187989,1742053855713,-500.0,0.00043835,120]
[356187990,1742053855726,-500.0,0.00043835,120]
[356187991,1742053855738,-712.94,0.00043835,120]
[356187992,1742053855751,-985.7,0.00043835,120]
[356187993,1742053855763,-500.0,0.00043835,120]
[356187994,1742053855776,-803.99,0.00043835,120]
[356187995,1742053855788,-491.50550991,0.00043835,120]
[356187996,1742053855801,-603.89,0.00043835,120]
[356187997,1742053855813,-642.88,0.00043835,120]
[356187998,1742053855825,-500.0,0.00043835,120]
[356187999,1742053855837,-500.0,0.00043835,120]
[356188000,1742053855849,-500.0,0.00043835,120]
[356188001,1742053855861,-1000.0,0.00043835,120]
[356188002,1742053855873,-332.42358135,0.00043835,120]
[356188003,1742053855886,-500.0,0.00043835,120]
[356188004,1742053855898,-500.0,0.00043835,120]
[356188005,1742053855911,-500.0,0.00043835,120]
[356188006,1742053855925,-500.0,0.00043835,120]
[356188007,1742053855938,-1082.44,0.00043835,120]
[356188008,1742053855950,-500.0,0.00043835,120]
[356188009,1742053855962,-505.81801183,0.00043835,120]
[356188010,1742053855975,-500.0,0.00043835,120]
[356188011,1742053855987,-500.0,0.00043835,120]
[356188012,1742053856000,-524.61585304,0.00043835,120]
[356188013,1742053856012,-500.0,0.00043835,120]
[356188014,1742053856024,-502.34836827,0.00043835,120]
[356188015,1742053856036,-500.0,0.00043835,120]
[356188016,1742053856048,-501.89539459,0.00043835,120]
[356188017,1742053856060,-504.26198501,0.00043835,120]
[356188018,1742053856072,-516.11519693,0.00043835,120]
[356188019,1742053856084,-500.0,0.00043835,120]
[356188020,1742053856096,-500.0,0.00043835,120]
[356188021,1742053856109,-852.49,0.00043835,120]
[356188022,1742053856122,-504.98582265,0.00043835,120]
[356188023,1742053856133,-500.0,0.00043835,120]
[356188024,1742053856145,-500.0,0.00043835,30]
[356188025,1742053856157,-501.12638881,0.00043835,7]
[356188026,1742053856170,-500.1573647,0.00043835,120]
[356188027,1742053856182,-500.0,0.00043835,120]
[356188028,1742053856194,-500.0,0.00043835,120]
[356188029,1742053856206,-500.0,0.00043835,120]
[356188030,1742053856218,-500.0,0.00043835,120]
[356188031,1742053856229,-502.99419525,0.00043835,120]
[356188032,1742053856242,-500.0,0.00043835,120]
[356188033,1742053856254,-500.0,0.00043835,120]
[356188034,1742053856266,-500.0,0.00043835,120]
[356188035,1742053856277,-507.00764421,0.00043835,120]
[356188036,1742053856289,-500.0,0.00043835,120]
[356188037,1742053856301,-583.16620506,0.00043835,120]
[356188038,1742053856313,-507.90337824,0.00043835,120]
[356188039,1742053856324,-1445.08,0.00043835,120]
[356188040,1742053856336,-838.66,0.00043835,120]
[356188041,1742053856348,-500.0,0.00043835,120]
[356188042,1742053856359,-677.04,0.00043835,120]
[356188043,1742053856370,-500.0,0.00043835,120]
[356188044,1742053856382,-500.0,0.00043835,120]
[356188045,1742053856393,-500.0,0.00043835,120]
[356188046,1742053856405,-500.0,0.00043835,120]
[356188047,1742053856417,-1041.27,0.00043835,120]
[356188048,1742053856428,-500.0,0.00043835,120]
[356188049,1742053856440,-500.0,0.00043835,120]
[356188050,1742053856452,-500.0,0.00043835,120]
[356188051,1742053856464,-588.87,0.00043835,120]
[356188052,1742053856476,-500.0,0.00043835,120]
[356188053,1742053856488,-500.0,0.00043835,120]
[356188054,1742053856499,-502.73840948,0.00043835,120]
[356188055,1742053856511,-500.0,0.00043835,120]
[356188056,1742053856522,-500.0,0.00043835,120]
[356188057,1742053856533,-500.0,0.00043835,120]
[356188058,1742053856545,-500.0,0.00043835,120]
[356188059,1742053856557,-500.0,0.00043835,120]
[356188060,1742053856569,-1178.25,0.00043835,120]
[356188061,1742053856582,-500.65135178,0.00043835,120]
[356188062,1742053856594,-500.0,0.00043835,120]
[356188063,1742053856611,-500.0,0.00043835,120]
[356188064,1742053856623,-500.0,0.00043835,120]
[356188065,1742053856635,-565.24,0.00043835,120]
[356188066,1742053856647,-685.5,0.00043835,120]
[356188067,1742053856659,-505.60658593,0.00043835,120]
[356188068,1742053856672,-413.75758841,0.00043835,120]
[356188069,1742053856684,-508.34638758,0.00043835,120]
[356188070,1742053856696,-623.94522686,0.00043835,120]
[356188071,1742053856708,-500.0,0.00043835,120]
[356188072,1742053856720,-500.0,0.00043835,120]
[356188073,1742053856734,-1358.72,0.00043835,120]
[356188074,1742053856746,-523.88324497,0.00043835,120]
[356188075,1742053856758,-500.0,0.00043835,120]
[356188076,1742053856770,-500.0,0.00043835,120]
[356188077,1742053856782,-619.82,0.00043835,120]
[356188078,1742053856795,-500.0,0.00043835,120]
[356188079,1742053856807,-500.0,0.00043835,120]
[356188080,1742053856819,-500.0,0.00043835,120]
[356188081,1742053856831,-689.79,0.00043835,120]
[356188082,1742053856843,-643.6554689,0.00043835,120]
[356188083,1742053856855,-500.0,0.00043835,120]
[356188084,1742053856868,-1072.25,0.00043835,120]
[356188085,1742053856879,-507.34547064,0.00043835,120]
[356188086,1742053856892,-500.0,0.00043835,120]
[356188087,1742053856905,-500.0,0.00043835,120]
[356188088,1742053856917,-500.0,0.00043835,120]
[356188089,1742053856927,-500.0,0.00043835,120]
[356188090,1742053856936,-510.80788856,0.00043835,120]
[356188091,1742053856945,-310.6455267,0.00043835,120]
[356188092,1742053856954,-500.0,0.00043835,120]
[356188093,1742053856964,-500.0,0.00043835,120]
[356188094,1742053856973,-504.79488724,0.00043835,120]
[356188095,1742053856983,-500.0,0.00043835,120]
[356188096,1742053856992,-500.0,0.00043835,120]
[356188097,1742053857002,-500.0,0.00043835,120]
[356188098,1742053857011,-500.0,0.00043835,120]
[356188099,1742053857020,-548.23,0.00043835,120]
[356188100,1742053857030,-500.0,0.00043835,120]
[356188101,1742053857039,-500.0,0.00043835,120]
[356188102,1742053857050,-500.0,0.00043835,120]
[356188103,1742053857060,-500.0,0.00043835,120]
[356188104,1742053857069,-711.2,0.00043835,120]
[356188105,1742053857079,-500.0,0.00043835,120]
[356188106,1742053857088,-1400.82,0.00043835,120]
[356188107,1742053857098,-500.0,0.00043835,120]
[356188108,1742053857107,-500.0,0.00043835,120]
[356188109,1742053857117,-500.0,0.00043835,120]
[356188110,1742053857127,-500.0,0.00043835,120]
[356188111,1742053857136,-500.0,0.00043835,120]
[356188112,1742053857145,-500.0,0.00043835,120]
[356188113,1742053857155,-500.0,0.00043835,120]
[356188114,1742053857164,-500.0,0.00043835,120]
[356188115,1742053857174,-500.0,0.00043835,120]
[356188116,1742053857184,-501.3251491,0.00043835,120]
[356188117,1742053857193,-500.0,0.00043835,120]
[356188118,1742053857203,-247.98445591,0.00043835,3]
[356188119,1742053857213,-500.0,0.00043835,120]
[356188120,1742053857222,-814.96,0.00043835,120]
[356188121,1742053857231,-505.21024628,0.00043835,120]
[356188122,1742053857643,-502.50577287,0.00043835,120]
[356188123,1742053857662,-500.0,0.00043835,120]
[356188124,1742053857692,-601.09,0.00043835,120]
[356188125,1742053857713,-1944.92,0.00043835,120]
[356188126,1742053857732,-500.0,0.00043835,120]
[356188127,1742053857742,-500.0,0.00043835,120]
[356188128,1742053857752,-500.0,0.00043835,120]
[356188129,1742053857762,-500.0,0.00043835,120]
[356188130,1742053857772,-500.0,0.00043835,120]
[356188131,1742053857782,-1078.55,0.00043835,120]
[356188132,1742053857791,-769.89,0.00043835,120]
[356188133,1742053857801,-627.07,0.00043835,120]
[356188134,1742053857810,-500.0,0.00043835,120]
[356188135,1742053857819,-500.0,0.00043835,120]
[356188136,1742053857829,-500.0,0.00043835,120]
[356188137,1742053857838,-500.0,0.00043835,120]
[356188138,1742053857848,-500.0,0.00043835,120]
[356188139,1742053857857,-500.0,0.00043835,120]
[356188140,1742053857867,-1362.1,0.00043835,120]
[356188141,1742053857877,-500.0,0.00043835,120]
[356188142,1742053857886,-500.0,0.00043835,120]
[356188143,1742053857896,-500.0,0.00043835,120]
[356188144,1742053857906,-500.0,0.00043835,120]
[356188145,1742053857916,-500.0,0.00043835,120]
[356188146,1742053857926,-634.22080569,0.00043835,120]
[356188147,1742053857936,-500.0,0.00043835,120]
[356188148,1742053857946,-500.0,0.00043835,120]
[356188149,1742053857955,-500.0,0.00043835,120]
[356188150,1742053857965,-500.0,0.00043835,120]
[356188151,1742053857975,-519.38777767,0.00043835,120]
[356188152,1742053857984,-298.52151408,0.00043835,120]
[356188153,1742053857994,-649.21571071,0.00043835,120]
[356188154,1742053858003,-886.33,0.00043835,120]
[356188155,1742053858014,-500.0,0.00043835,120]
[356188156,1742053858023,-500.0,0.00043835,120]
[356188157,1742053858033,-500.0,0.00043835,120]
[356188158,1742053858042,-535.68,0.00043835,120]
[356188159,1742053858052,-1042.42,0.00043835,120]
[356188160,1742053858062,-500.0,0.00043835,120]
[356188161,1742053858072,-505.59175329,0.00043835,120]
[356188162,1742053858082,-500.0,0.00043835,120]
[356188163,1742053858091,-506.33592434,0.00043835,120]
[356188164,1742053858100,-4177.15,0.00043835,120]
[356188165,1742053858110,-500.0,0.00043835,120]
[356188166,1742053858120,-507.87133623,0.00043835,120]
[356188167,1742053858130,-500.0,0.00043835,120]
[356188168,1742053858140,-500.0,0.00043835,120]